bitfinex-derivatives/quotes_ETHF0:USTF0_20240905
["timestamp","ask_amount","ask_price","bid_price","bid_amount"]
[1725532489606,3.2078,2390.4,2390.0,2.9]
[1725532489805,3.2078,2390.1,2390.0,2.9]
[1725532490008,3.2078,2390.1,2389.9,0.42471917]
[1725532491614,3.2078,2390.1,2390.0,0.41843]
[1725532491804,3.2078,2390.4,2390.0,0.41843]
[1725532492308,3.62616,2390.4,2389.9,0.42470917]
[1725532492504,3.2078,2390.4,2390.0,0.41842]
[1725532492713,3.62616,2390.4,2389.9,0.42470917]
[1725532493808,1.0036,2390.5,2389.9,0.00627917]
[1725532493809,3.2078,2390.1,2389.9,0.00627917]
[1725532494204,3.6937,2390.1,2389.9,0.00627917]
[1725532495901,10.7777,2390.1,2389.9,0.00627917]
[1725532496100,0.94003,2390.0,2389.9,0.00627917]
[1725532496708,5.12403,2390.0,2389.9,0.00627917]
[1725532497301,0.5216,2390.0,2389.9,0.00627917]
[1725532498012,4.7056,2390.0,2389.9,0.00627917]
[1725532498410,0.5216,2390.0,2389.9,0.00627917]
[1725532500216,3.6937,2390.1,2389.9,2.90627917]
[1725532500424,3.715,2390.4,2390.0,3.9177]
[1725532500607,3.715,2390.4,2390.3,0.41837]
[1725532500911,3.715,2390.4,2390.2,0.41838]
[1725532501811,3.715,2390.4,2390.2,41.21838]
[1725532502008,3.2078,2390.4,2390.3,0.41837]
[1725532503508,3.2078,2390.4,2390.2,0.41838]
[1725532503725,3.2078,2390.4,2390.2,0.41839]
[1725532503919,3.2078,2390.4,2390.2,41.21839]
[1725532504115,3.2078,2390.4,2390.2,40.8]
[1725532504413,3.2078,2390.4,2390.0,1.0177]
[1725532504612,3.2078,2390.4,2389.9,0.00627917]
[1725532504613,2.9,2390.3,2389.9,0.00627917]
[1725532504816,3.2078,2390.1,2389.9,0.00627917]
[1725532505120,3.2078,2390.1,2389.9,41.22471917]
[1725532505310,3.7148,2390.1,2389.9,41.22471917]
[1725532505913,3.7148,2390.1,2389.9,40.80627917]
[1725532506224,3.7148,2390.1,2389.9,0.00627917]
[1725532511321,3.2078,2390.1,2390.0,0.41843]
[1725532511622,3.2078,2390.1,2390.0,0.91083]
[1725532513417,3.2078,2390.1,2390.0,41.71083]
[1725532513626,0.51,2390.4,2390.2,0.41839]
[1725532514220,3.2078,2390.3,2390.2,0.41839]
[1725532515013,0.51,2390.4,2390.2,0.41839]
[1725532515217,3.2078,2390.3,2390.2,0.41839]
[1725532515819,3.2078,2390.3,2390.1,0.4184]
[1725532516425,3.2078,2390.3,2390.2,0.41839]
[1725532517327,3.2078,2390.3,2390.2,4.60239]
[1725532517826,3.2078,2390.3,2390.2,6.13387]
[1725532518026,3.2078,2390.8,2390.7,0.4183]
[1725532518421,3.2078,2390.8,2390.6,0.41831]
[1725532519424,3.2078,2390.8,2390.5,0.94743]
[1725532520425,3.62609,2390.8,2390.5,0.94743]
[1725532520716,3.62609,2390.8,2390.5,0.41833]
[1725532521123,3.62609,2390.8,2390.6,0.41832]
[1725532521725,3.2078,2390.8,2390.6,0.41832]
[1725532522531,3.2078,2390.8,2390.6,0.41831]
[1725532524640,3.2078,2390.8,2390.7,0.4183]
[1725532525840,0.00627917,2391.2,2390.7,13.0824]
[1725532526031,0.00627917,2391.2,2391.1,3.31823]
[1725532526231,0.00627917,2391.2,2391.0,3.31824]
[1725532526434,3.2078,2391.1,2391.0,3.31824]
[1725532526738,3.7359,2391.1,2391.0,0.41824]
[1725532527044,4.66814,2391.1,2390.9,0.41827]
[1725532528042,4.2499,2391.1,2391.0,0.41825]
[1725532528631,0.5281,2391.1,2391.0,0.41825]
[1725532529042,3.7359,2391.1,2391.0,0.41825]
[1725532530240,3.2078,2391.1,2391.0,0.41825]
[1725532530542,3.2078,2391.1,2391.0,3.31825]
[1725532532530,0.49147917,2391.2,2391.0,3.31825]
[1725532532531,0.49147917,2391.2,2391.1,0.41823]
[1725532533929,0.00627917,2391.2,2391.1,0.41823]
[1725532534135,0.00627917,2391.2,2391.1,0.93113]
[1725532535347,0.00627917,2391.2,2391.1,3.83113]
[1725532536934,0.00627917,2391.2,2391.1,0.93113]
[1725532539846,0.00627917,2391.2,2391.1,5.11353]
[1725532540039,0.00627917,2391.2,2391.1,8.01353]
[1725532540531,0.00627917,2391.2,2391.1,48.81353]
[1725532541332,0.00627917,2391.2,2391.1,49.85912]
[1725532541535,0.5155,2391.6,2391.5,0.41816]
[1725532541737,3.2078,2392.1,2391.5,7.0816]
[1725532541933,0.518,2392.0,2391.9,0.41808]
[1725532542140,3.2078,2392.1,2392.0,3.83948]
[1725532542343,3.2078,2392.1,2392.0,0.5214]
[1725532542642,0.41808,2392.0,2391.8,0.00627917]
[1725532542843,0.93608,2392.0,2391.8,0.00627917]
[1725532543049,0.518,2392.0,2391.8,0.00627917]
[1725532543243,1.0203,2392.0,2391.8,0.00627917]
[1725532543447,0.41809,2391.9,2391.8,0.00627917]
[1725532545146,1.0203,2392.0,2391.9,0.41809]
[1725532545147,0.518,2392.0,2391.9,0.41809]
[1725532545350,0.518,2392.0,2391.9,0.90349]
[1725532545541,3.2078,2392.1,2392.0,0.41808]
[1725532547940,3.2078,2392.1,2391.9,4.82388]
[1725532548245,3.2078,2392.1,2391.9,0.41809]
[1725532548442,3.2078,2392.1,2391.9,0.93759]
[1725532548749,3.2078,2392.1,2392.0,0.41808]
[1725532549838,3.2078,2392.1,2391.9,3.83758]
[1725532550045,3.2078,2392.1,2391.9,3.4195]
[1725532550247,3.2078,2392.1,2391.9,3.83759]
[1725532550751,0.41808,2392.0,2391.8,0.00627917]
[1725532551244,0.4927,2391.9,2391.8,0.00627917]
[1725532552246,0.4927,2391.9,2391.8,0.42438917]
[1725532554147,3.2078,2392.1,2392.0,0.41808]
[1725532554359,3.6878,2392.1,2392.0,0.41808]
[1725532555952,4.10586,2392.1,2391.9,0.41808]
[1725532556147,3.6878,2392.1,2391.9,0.41808]
[1725532556339,4.10586,2392.1,2391.9,0.41808]
[1725532557140,4.10586,2392.1,2392.0,0.41808]
[1725532557652,1.46333,2391.9,2391.8,0.00627917]
[1725532557956,0.41817,2391.5,2391.3,0.41819]
[1725532558245,3.94524,2391.9,2391.3,0.41819]
[1725532558246,3.6888,2391.4,2391.3,0.41819]
[1725532559751,0.90541,2391.8,2391.3,4.1816]
[1725532559947,0.9892,2391.7,2391.5,2.9]
[1725532560351,0.9892,2391.7,2391.5,3.31815]
[1725532560656,0.9892,2391.7,2391.6,0.41815]
[1725532561455,1.40734,2391.7,2391.4,0.41817]
[1725532561659,3.62595,2391.6,2391.3,3.31819]
[1725532562260,3.2078,2391.6,2391.4,0.41818]
[1725532562952,3.2078,2391.6,2391.5,0.41816]
[1725532563557,3.2078,2391.6,2391.4,0.41817]
[1725532564855,0.9892,2391.7,2391.5,2.9]
[1725532565151,3.21407917,2392.3,2392.1,0.41805]
[1725532565345,4.19497917,2392.3,2392.1,0.41805]
[1725532565544,4.19497917,2392.3,2392.0,2.9]
[1725532565545,4.19497917,2392.3,2392.0,3.31807]
[1725532566347,4.61300917,2392.3,2391.8,2.9]
[1725532566556,4.19497917,2392.3,2392.0,0.41807]
[1725532566759,4.19497917,2392.3,2392.0,2.9]
[1725532566953,4.19497917,2392.3,2392.2,0.41804]
[1725532567856,4.19497917,2392.3,2392.1,1.45115]
[1725532568056,4.19497917,2392.3,2392.1,0.5134]
[1725532568457,4.19497917,2392.3,2392.1,0.93146]
[1725532569858,4.19497917,2392.3,2392.2,0.41804]
[1725532570048,3.71237917,2392.3,2392.2,0.41804]
[1725532570252,3.71237917,2392.3,2392.2,0.90094]
[1725532572561,3.21407917,2392.3,2392.2,3.80094]
[1725532572953,3.21407917,2392.3,2392.2,3.3829]
[1725532573156,3.21407917,2392.3,2392.2,3.80094]
[1725532573353,3.21407917,2392.3,2392.2,3.3829]
[1725532573557,3.21407917,2392.3,2392.1,0.93145]
[1725532574464,3.21407917,2392.3,2392.2,0.41804]
[1725532576557,3.21407917,2392.3,2392.2,3.31804]
[1725532576760,3.20779946,2392.3,2392.2,9.06955]
[1725532576965,3.20779946,2392.3,2392.2,15.06955]
[1725532577363,3.20779946,2392.3,2392.2,56.07664774]
[1725532578759,0.00627917,2392.5,2392.4,0.41801]
[1725532578961,0.00627917,2392.5,2392.4,3.31801]
[1725532579156,5.1357,2392.9,2392.8,0.41794]
[1725532579364,3.2078,2393.0,2392.8,0.41794]
[1725532579365,3.2078,2393.0,2392.8,2.9]
[1725532579561,3.7086,2393.0,2392.9,0.41792]
[1725532579764,3.7086,2393.0,2392.8,3.31792]
[1725532580157,3.7086,2393.0,2392.7,0.41794]
[1725532580364,3.7086,2393.0,2392.8,0.41794]
[1725532580567,3.7086,2393.0,2392.7,0.42421917]
[1725532580768,3.7086,2393.0,2392.8,3.31794]
[1725532581574,3.7086,2393.0,2392.8,2.9]
[1725532582167,4.1265,2393.0,2392.8,2.9]
[1725532582469,3.7086,2393.0,2392.8,3.31794]
[1725532582665,0.41793,2392.9,2392.7,0.00627917]
[1725532582859,4.12651,2393.0,2392.7,0.00627917]
[1725532583668,4.12651,2393.0,2392.7,0.42422917]
[1725532584667,0.5008,2393.0,2392.9,3.31792]
[1725532585377,0.5008,2393.0,2392.9,3.81382]
[1725532586476,3.7086,2393.0,2392.9,3.3959]
[1725532586673,4.1265,2393.0,2392.8,2.9]
[1725532587174,4.1265,2393.0,2392.8,3.31793]
[1725532587678,3.7086,2393.0,2392.8,3.31793]
[1725532587873,3.7086,2393.0,2392.9,0.41792]
[1725532588076,0.5008,2393.0,2392.9,0.41792]
[1725532588272,0.5008,2393.0,2392.8,4.34032]
[1725532588473,0.5008,2393.0,2392.8,3.9224]
[1725532588969,0.5008,2393.0,2392.9,0.41792]
[1725532589480,0.5008,2393.0,2392.7,0.00627917]
[1725532589481,0.41793,2392.9,2392.7,0.00627917]
[1725532589667,0.41794,2392.8,2392.7,0.00627917]
[1725532589872,2.19392373,2392.8,2392.7,0.00627917]
[1725532590070,6.15389,2392.8,2392.7,0.00627917]
[1725532590373,5.32828524,2392.8,2392.7,0.00627917]
[1725532590577,5.10904,2392.8,2392.7,0.00627917]
[1725532591380,0.92984,2392.8,2392.7,0.00627917]
[1725532592182,3.2078,2392.9,2392.7,0.00627917]
[1725532592880,0.41794,2392.8,2392.7,0.00627917]
[1725532594880,3.62573,2392.9,2392.7,0.00627917]
[1725532595080,3.62573,2392.9,2392.7,0.42422917]
[1725532595269,0.5108,2393.0,2392.8,2.9]
[1725532595475,0.5108,2393.0,2392.8,3.31792]
[1725532595782,0.5108,2393.0,2392.9,0.92992]
[1725532597080,0.9287,2393.0,2392.9,0.512]
[1725532597277,0.9287,2393.0,2392.7,0.42422917]
[1725532597278,0.41793,2392.9,2392.7,0.42422917]
[1725532597470,0.41794,2392.8,2392.7,0.00627917]
[1725532597670,0.91894,2392.8,2392.7,0.00627917]
[1725532597874,5.09814,2392.8,2392.7,0.00627917]
[1725532598276,0.91894,2392.8,2392.7,0.00627917]
[1725532598475,5.09814,2392.8,2392.7,0.00627917]
[1725532599076,0.91894,2392.8,2392.7,0.00627917]
[1725532599487,5.09814,2392.8,2392.7,0.00627917]
[1725532600283,0.91894,2392.8,2392.7,0.00627917]
[1725532601079,0.501,2392.8,2392.7,0.42422917]
[1725532601279,0.92871,2393.0,2392.8,0.41793]
[1725532601577,0.41792,2392.9,2392.7,0.42421917]
[1725532601775,0.92871,2393.0,2392.8,0.41792]
[1725532601986,0.5108,2393.0,2392.9,0.41792]
[1725532602390,0.5025,2393.1,2393.0,0.4179]
[1725532602691,4.111,2393.2,2393.1,0.41788]
[1725532603787,1.053,2393.3,2393.2,0.41787]
[1725532603988,1.47085,2393.3,2393.1,0.41787]
[1725532604287,0.41787,2393.2,2393.0,0.92129]
[1725532605793,0.41788,2393.1,2393.0,0.5034]
[1725532606490,0.41788,2393.2,2393.0,0.92129]
[1725532607898,0.41788,2393.1,2393.0,0.92129]
[1725532608191,1.053,2393.3,2392.7,3.38927917]
[1725532608192,3.2078,2393.2,2392.7,3.38927917]
[1725532608386,3.2078,2393.2,2392.7,2.90627917]
[1725532608588,1.053,2393.3,2392.8,3.4317]
[1725532608791,0.41787,2393.2,2393.0,0.4179]
[1725532609197,0.41787,2393.2,2393.0,0.9152]
[1725532609695,0.6370556,2393.1,2393.0,0.4973]
[1725532609998,0.41792,2393.0,2392.8,0.94963]
[1725532610192,0.2191756,2392.9,2392.8,1.44693]
[1725532610403,0.2191756,2392.9,2392.8,0.91523]
[1725532610404,1.2200756,2392.9,2392.8,0.91523]
[1725532611092,1.2200756,2392.9,2392.8,0.4973]
[1725532611285,1.2200756,2392.9,2392.8,0.91524]
[1725532611593,0.7344756,2392.9,2392.8,0.91524]
[1725532613284,0.41794,2392.8,2392.7,0.00627917]
[1725532613488,0.6371156,2392.8,2392.7,0.00627917]
[1725532614992,1.6819656,2392.8,2392.7,0.00627917]
[1725532615494,1.68198035,2392.8,2392.7,0.00627917]
[1725532618598,1.46279,2392.8,2392.7,0.00627917]
[1725532618790,1.6819737,2392.8,2392.7,0.00627917]
[1725532619592,0.2191837,2392.8,2392.7,0.42422917]
[1725532619793,0.5153,2392.9,2392.7,0.42422917]
[1725532619794,0.4997,2393.1,2392.8,0.41794]
[1725532619997,0.6370835,2393.0,2392.8,0.90114]
[1725532620201,0.41791,2393.0,2392.9,0.4911]
[1725532620394,0.63708237,2393.0,2392.9,0.4911]
[1725532620993,1.41469,2393.1,2392.9,0.90901]
[1725532621198,0.41787,2393.2,2393.0,2.9]
[1725532621399,0.21918708,2393.1,2393.0,3.31789]
[1725532621801,0.21918708,2393.1,2393.0,0.41789]
[1725532623101,0.63706708,2393.1,2392.9,3.80901]
[1725532623406,0.41788,2393.1,2392.9,3.80901]
[1725532623708,2.07133,2393.4,2392.9,3.3911]
[1725532623907,0.4179,2393.1,2392.9,3.3911]
[1725532625300,0.4179,2393.1,2392.9,3.80902]
[1725532626304,2.07133,2393.4,2392.9,3.3911]
[1725532626609,0.41789,2393.1,2392.9,3.80902]
[1725532627711,0.4179,2393.0,2392.9,3.3911]
[1725532628013,0.21938128,2393.0,2392.9,3.80902]
[1725532628202,0.4179,2393.1,2392.9,3.80902]
[1725532628403,0.4179,2393.1,2393.0,0.4179]
[1725532628706,0.21937194,2393.1,2393.0,0.4179]
[1725532628900,2.5444,2393.6,2393.3,0.41785]
[1725532629110,0.21937004,2393.5,2393.4,0.92722]
[1725532629303,0.63718004,2393.5,2393.4,1.45413]
[1725532629606,0.63718004,2393.5,2393.4,1.0363]
[1725532630208,0.21937004,2393.5,2393.4,1.45413]
[1725532630706,0.41779,2393.7,2393.5,0.41781]
[1725532631103,0.21937327,2393.6,2393.5,0.92681]
[1725532632312,0.41779,2393.7,2393.5,0.92681]
[1725532632313,0.92947,2393.8,2393.6,0.41779]
[1725532632508,0.21931299,2393.7,2393.6,0.41779]
[1725532632804,0.21931299,2393.7,2393.5,0.509]
[1725532632805,0.63709299,2393.7,2393.5,0.509]
[1725532633005,0.21931299,2393.6,2393.4,1.0363]
[1725532633209,0.41784,2393.4,2393.2,3.31785]
[1725532633408,0.41784,2393.4,2393.3,0.5048]
[1725532633602,0.41785,2393.3,2393.1,0.41787]
[1725532633803,0.21933508,2393.2,2393.1,0.41787]
[1725532634208,0.41787,2393.2,2393.1,0.41787]
[1725532634511,0.41792,2392.9,2392.7,2.90627917]
[1725532634717,0.41791,2393.0,2392.8,0.92273]
[1725532634912,0.63724694,2392.9,2392.8,0.5048]
[1725532636313,0.63724694,2392.9,2392.7,2.90627917]
[1725532636314,1.46279,2392.8,2392.7,0.00627917]
[1725532636613,6.36471694,2392.8,2392.7,0.00627917]
[1725532637720,5.31986694,2392.8,2392.7,0.00627917]
[1725532639833,6.36471694,2392.8,2392.7,0.00627917]
[1725532640038,1.04493,2392.7,2392.2,0.4832]
[1725532640336,7.15274,2392.6,2391.9,43.7]
[1725532640539,7.15274,2392.6,2391.8,0.9013]
[1725532640540,0.41808,2392.0,2391.8,0.9013]
[1725532640737,4.25289,2392.3,2391.9,0.41809]
[1725532641038,1.40626,2392.2,2391.9,0.41809]
[1725532641232,1.40626,2392.2,2391.9,0.42436917]
[1725532641437,1.40626,2392.2,2392.0,0.41808]
[1725532641739,3.21407917,2392.3,2392.1,3.31806]
[1725532641740,0.42430917,2392.3,2392.1,3.31806]
[1725532641928,0.42430917,2392.3,2392.2,0.5314]
[1725532642339,0.00627917,2392.3,2392.2,0.94944]
[1725532643540,0.00627917,2392.3,2392.2,1.46544]
[1725532644927,0.00627917,2392.3,2392.2,5.64544]
[1725532647033,0.41791,2393.0,2392.7,0.41795]
[1725532647241,0.5002,2393.1,2392.8,0.90834]
[1725532647442,0.5002,2393.1,2392.8,0.9992]
[1725532647443,0.4179,2393.0,2392.8,0.9992]
[1725532647645,0.63721575,2393.0,2392.8,41.7992]
[1725532647941,0.4179,2393.0,2392.8,41.7992]
[1725532648143,0.4179,2393.0,2392.8,0.9992]
[1725532648344,0.6372305,2392.9,2392.8,0.4904]
[1725532648540,0.41795,2392.7,2392.6,2.9]
[1725532649736,0.41795,2392.7,2392.4,41.8022]
[1725532649737,3.2078,2392.9,2392.4,2.9]
[1725532649930,3.2078,2392.9,2392.3,0.4934]
[1725532649931,0.41801,2392.4,2392.3,0.4934]
[1725532650334,0.418,2392.5,2392.3,0.91142]
[1725532650737,0.41801,2392.4,2392.3,0.4934]
[1725532650940,4.2149,2392.6,2392.2,2.9]
[1725532651249,0.41802,2392.3,2392.2,2.9]
[1725532652037,0.41802,2392.4,2392.2,3.31803]
[1725532652642,0.41802,2392.3,2392.2,3.31803]
[1725532652842,0.41802,2392.3,2392.2,2.9]
[1725532653644,0.41802,2392.3,2392.2,3.31804]
[1725532653848,0.41802,2392.3,2392.2,2.9]
[1725532654349,4.2149,2392.6,2392.3,0.41802]
[1725532654645,0.41801,2392.4,2392.3,0.41802]
[1725532655347,4.2149,2392.6,2392.2,2.9]
[1725532655348,0.418,2392.5,2392.4,0.41801]
[1725532655547,4.63288,2392.6,2392.5,0.5258]
[1725532656540,4.63288,2392.6,2392.5,0.94379]
[1725532657647,0.41794,2392.8,2392.6,0.41796]
[1725532658144,0.41795,2392.7,2392.6,0.41796]
[1725532658347,0.41795,2392.8,2392.6,0.41796]
[1725532658748,0.41795,2392.7,2392.6,0.41796]
[1725532660148,0.41795,2392.7,2392.6,0.41797]
[1725532660345,0.41797,2392.6,2392.5,0.94378]
[1725532660548,0.41797,2392.6,2392.5,0.5258]
[1725532661345,0.41797,2392.6,2392.5,0.94379]
[1725532661749,5.8287,2392.9,2392.4,0.418]
[1725532661750,0.418,2392.5,2392.4,0.418]
[1725532662049,0.41798,2392.6,2392.4,0.41799]
[1725532662240,6.87352,2392.9,2392.5,0.41798]
[1725532662439,6.87352,2392.9,2392.4,2.9]
[1725532662440,5.26252,2392.9,2392.4,2.9]
[1725532662642,0.21923257,2392.8,2392.4,2.9]
[1725532662842,0.41794,2392.8,2392.7,0.41795]
[1725532663250,1.42783,2392.9,2392.6,2.9]
[1725532663452,0.92583,2392.9,2392.7,0.90924]
[1725532663653,0.92583,2392.9,2392.8,0.41794]
[1725532663859,1.14511742,2392.9,2392.8,0.41794]
[1725532665152,1.14511255,2392.9,2392.8,0.41794]
[1725532665354,0.21928255,2392.9,2392.8,3.31794]
[1725532665555,0.4975,2393.1,2392.8,2.9]
[1725532665749,0.91539,2393.1,2393.0,0.4179]
[1725532665943,0.91539,2393.1,2392.9,0.4861]
[1725532665944,0.4975,2393.1,2392.9,0.4861]
[1725532666150,0.91539,2393.1,2393.0,0.4179]
[1725532666350,0.4179,2393.0,2392.9,0.90401]
[1725532666656,0.4975,2393.1,2393.0,0.4179]
[1725532666657,0.9154,2393.1,2393.0,0.4179]
[1725532666851,0.4975,2393.1,2392.9,0.4861]
[1725532667057,0.9154,2393.1,2393.0,0.4179]
[1725532667258,0.4975,2393.1,2392.9,0.4861]
[1725532667456,0.4179,2393.0,2392.9,0.90401]
[1725532667755,4.10748,2393.2,2393.1,0.41788]
[1725532667952,0.41789,2393.1,2393.0,0.41789]
[1725532668550,3.2078,2393.2,2393.1,0.41788]
[1725532668752,0.41782,2393.5,2393.4,0.41782]
[1725532669353,3.62561,2393.6,2393.5,0.41781]
[1725532669550,0.21929315,2393.6,2393.5,3.31781]
[1725532669757,0.90159,2393.7,2393.6,0.4178]
[1725532669960,0.90159,2393.7,2393.5,2.9]
[1725532670553,0.90159,2393.7,2393.5,3.3178]
[1725532670956,0.90159,2393.7,2393.5,2.9]
[1725532671556,0.90159,2393.7,2393.6,0.4178]
[1725532672053,0.4838,2393.7,2393.6,0.4178]
[1725532672456,0.90158,2393.7,2393.5,3.3178]
[1725532672757,0.90158,2393.7,2393.5,3.31781]
[1725532674159,0.90158,2393.7,2393.6,0.4178]
[1725532674467,0.90158,2393.7,2393.5,3.3178]
[1725532674661,0.90158,2393.7,2393.6,0.4178]
[1725532675160,0.90158,2393.7,2393.5,3.3178]
[1725532677063,0.21932957,2393.6,2393.5,3.3178]
[1725532677965,0.90158,2393.7,2393.6,0.4178]
[1725532678353,1.12090264,2393.7,2393.6,0.4178]
[1725532678764,1.12090264,2393.7,2393.5,2.9]
[1725532678765,0.4178,2393.6,2393.5,0.4178]
[1725532678962,0.21932264,2393.6,2393.2,2.90627917]
[1725532679162,0.21932264,2393.6,2393.3,0.41784]
[1725532679460,0.41783,2393.4,2393.3,0.41784]
[1725532679660,0.21932264,2393.4,2393.3,0.41784]
[1725532680556,4.73608,2393.7,2393.5,0.41781]
[1725532680557,0.4178,2393.6,2393.5,0.41781]
[1725532681165,0.63713423,2393.6,2393.4,0.41782]
[1725532681364,0.21933423,2393.5,2393.4,0.41782]
[1725532681560,0.21933423,2393.5,2393.3,0.41785]
[1725532681862,4.2013,2393.7,2393.2,3.32413917]
[1725532681863,0.63718423,2393.4,2393.2,3.32413917]
[1725532682066,0.41785,2393.3,2393.2,3.32413917]
[1725532682271,0.41785,2393.3,2393.2,0.00627917]
[1725532682566,0.41785,2393.3,2393.2,0.42414917]
[1725532683066,0.41785,2393.3,2393.2,0.00627917]
[1725532683368,0.63720044,2393.3,2393.2,0.00627917]
[1725532684269,0.63720044,2393.3,2393.2,0.42414917]
[1725532684469,0.21935044,2393.3,2393.2,0.42414917]
[1725532684966,0.41785,2393.3,2393.2,0.42414917]
[1725532685470,0.41783,2393.5,2393.3,0.41785]
[1725532685767,0.5218,2393.6,2393.2,0.00627917]
[1725532685970,0.41785,2393.3,2393.2,0.00627917]
[1725532686366,0.92225,2393.3,2393.2,0.00627917]
[1725532687171,0.92225,2393.3,2393.2,0.42414917]
[1725532688476,0.92225,2393.3,2393.2,0.00627917]
[1725532689365,3.2078,2393.4,2393.2,2.90627917]
[1725532689672,0.41782,2393.5,2393.4,0.41782]
[1725532690070,0.4838,2393.7,2393.6,0.4178]
[1725532690276,0.4838,2393.7,2393.6,3.3178]
[1725532690673,3.2078,2393.8,2393.7,0.41778]
[1725532691173,3.2078,2393.8,2393.7,0.92138]
[1725532691372,3.2078,2393.8,2393.7,3.82138]
[1725532695885,0.41775,2393.9,2393.7,3.82138]
[1725532697781,0.41776,2393.8,2393.7,3.82138]
[1725532697988,0.41776,2393.8,2393.6,2.9]
[1725532698486,0.41776,2393.8,2393.7,0.41778]
[1725532700077,0.6372162,2393.8,2393.6,3.31779]
[1725532700277,0.2194562,2393.7,2393.6,3.31779]
[1725532700877,0.2194562,2393.7,2393.2,6.11407917]
[1725532700878,4.3970562,2393.7,2393.2,6.11407917]
[1725532701083,0.41784,2393.4,2393.3,0.41784]
[1725532701280,0.6372962,2393.4,2393.3,0.41784]
[1725532701677,0.6372962,2393.4,2393.2,3.32413917]
[1725532701880,0.41785,2393.3,2393.2,3.32413917]
[1725532702186,3.2078,2393.5,2393.2,2.90627917]
[1725532702187,0.41782,2393.5,2393.2,2.90627917]
[1725532702485,0.21947016,2393.4,2393.3,0.41784]
[1725532703884,0.63730016,2393.4,2393.3,0.41784]
[1725532704385,0.63731016,2393.4,2393.3,0.41785]
[1725532705990,0.21947016,2393.4,2393.3,0.41785]
[1725532706982,0.41783,2393.5,2393.3,0.41785]
[1725532707891,0.41783,2393.5,2393.2,2.90627917]
[1725532707892,0.41785,2393.3,2393.2,0.00627917]
[1725532708092,1.46248,2393.3,2393.2,0.00627917]
[1725532708489,0.41785,2393.3,2393.2,0.00627917]
[1725532709286,0.41784,2393.4,2393.2,0.00627917]
[1725532709483,0.41784,2393.4,2393.3,0.41785]
[1725532709689,0.63736363,2393.4,2393.3,0.41785]
[1725532710093,0.41784,2393.4,2393.3,0.41785]
[1725532710388,0.6373499,2393.4,2393.3,0.41785]
[1725532710588,0.2195199,2393.4,2393.3,0.41785]
[1725532711489,0.6373499,2393.4,2393.3,0.41785]
[1725532713992,0.41785,2393.3,2393.2,0.00627917]
[1725532714193,3.8451699,2393.3,2393.2,0.00627917]
[1725532714888,9.0681999,2393.3,2393.2,0.00627917]
[1725532715092,8.84868,2393.3,2393.2,0.00627917]
[1725532715292,9.06819875,2393.3,2393.2,0.00627917]
[1725532718288,9.06815748,2393.3,2393.2,0.00627917]
[1725532719995,9.08070741,2393.3,2393.2,0.00627917]
[1725532721596,8.03607741,2393.3,2393.2,0.00627917]
[1725532721995,3.85767741,2393.3,2393.2,0.00627917]
[1725532722199,3.63819993,2393.3,2393.2,0.00627917]
[1725532722888,3.43982289,2393.3,2393.2,1.62414917]
[1725532723207,3.22034993,2393.3,2393.2,1.62414917]
[1725532723495,3.43975084,2393.3,2393.2,1.62414917]
[1725532723695,3.43975084,2393.3,2393.2,2.12374917]
[1725532723900,3.43975084,2393.3,2393.2,3.81374917]
[1725532724503,3.65914502,2393.3,2393.2,3.81374917]
[1725532725003,0.23195084,2393.3,2393.2,3.81374917]
[1725532725203,3.6591177,2393.3,2393.2,3.81374917]
[1725532727893,3.43971679,2393.3,2393.2,3.81374917]
[1725532728796,3.43973376,2393.3,2393.2,3.81374917]
[1725532728999,3.43973294,2393.3,2393.2,3.81374917]
[1725532730003,3.22034993,2393.3,2393.2,3.81374917]
[1725532733005,0.01254993,2393.3,2393.2,3.81374917]
[1725532733207,0.01254993,2393.3,2393.2,9.03681917]
[1725532733411,0.01254993,2393.3,2393.2,15.03681917]
[1725532735710,0.01254993,2393.3,2393.2,7.99214917]
[1725532735908,0.01254993,2393.3,2393.2,3.31414917]
[1725532736100,0.01254993,2393.3,2393.2,0.42414917]
[1725532737205,0.23191935,2393.3,2393.2,0.42414917]
[1725532740007,0.23191935,2393.3,2393.2,3.31414917]
[1725532741413,0.23190515,2393.3,2393.2,3.31414917]
[1725532743616,0.64975515,2393.3,2393.2,0.00627917]
[1725532744108,0.64975515,2393.3,2393.2,0.42414917]
[1725532744918,0.43039993,2393.3,2393.2,0.42414917]
[1725532745212,0.64982004,2393.3,2393.2,0.42414917]
[1725532745419,0.64982004,2393.3,2392.7,4.84666059]
[1725532745420,14.90150085,2393.3,2392.3,1.09257372]
[1725532745720,0.41801,2392.4,2392.2,0.41803]
[1725532746026,0.01254993,2392.3,2392.2,1.2]
[1725532746317,0.01254993,2392.3,2392.2,1.61804]
[1725532746507,0.43056993,2392.3,2392.2,1.2]
[1725532747114,0.41804,2392.2,2392.1,3.2078]
[1725532747620,0.41806,2392.1,2392.0,0.00627917]
[1725532747809,1.71395125,2392.1,2392.0,0.00627917]
[1725532748029,1.72650118,2392.1,2392.0,0.00627917]
[1725532748317,1.50710993,2392.1,2392.0,0.00627917]
[1725532748715,5.68790993,2392.1,2392.0,0.00627917]
[1725532753821,8.89570993,2392.1,2392.0,0.00627917]
[1725532756620,3.2078,2392.4,2392.0,10.60515917]
[1725532756822,0.42427917,2392.5,2392.2,0.41804]
[1725532757022,0.41801,2392.4,2392.2,0.41804]
[1725532757215,0.95511,2392.4,2392.3,40.8]
[1725532757415,0.5371,2392.4,2392.3,41.21802]
[1725532757827,0.5371,2392.4,2392.3,40.8]
[1725532758526,0.5371,2392.4,2392.3,41.21802]
[1725532758817,0.5371,2392.4,2392.3,0.41802]
[1725532761526,0.00627917,2392.5,2392.3,0.41802]
[1725532762424,0.00627917,2392.5,2392.4,0.41801]
[1725532762814,0.00627917,2392.5,2392.4,4.59801]
[1725532765127,0.00627917,2392.5,2392.4,11.64303]